bitfinex/quotes_BTCUSD_20230901
["timestamp","ask_amount","ask_price","bid_price","bid_amount"]
[1693595068383,0.021,25671.0,25670.0,0.33205961]
[1693595068611,0.101,25671.0,25670.0,0.33205961]
[1693595068814,0.121,25671.0,25670.0,0.33288446]
[1693595069876,0.021,25671.0,25670.0,0.33288446]
[1693595070076,0.041,25671.0,25670.0,0.33288446]
[1693595071267,0.021,25671.0,25670.0,0.33288446]
[1693595074999,0.021,25671.0,25670.0,0.08765]
[1693595075208,0.021,25671.0,25670.0,0.10333912]
[1693595075415,0.021,25671.0,25670.0,0.27863912]
[1693595078791,0.141,25671.0,25670.0,0.27863912]
[1693595083848,0.121,25671.0,25670.0,0.27863912]
[1693595084205,0.141,25671.0,25670.0,0.27863912]
[1693595086907,0.141,25671.0,25670.0,0.26295]
[1693595087939,0.141,25671.0,25670.0,0.27864996]
[1693595095246,0.141,25671.0,25670.0,0.26295]
[1693595096791,0.2936,25671.0,25670.0,0.26295]
[1693595099062,0.2936,25671.0,25670.0,0.27863467]
[1693595100696,0.2936,25671.0,25670.0,0.19098467]
[1693595100875,0.2936,25671.0,25670.0,0.27863467]
[1693595103315,0.1936,25671.0,25670.0,0.27863467]
[1693595103530,0.33852249,25675.0,25670.0,0.90257287]
[1693595103531,0.02,25675.0,25670.0,0.90257287]
[1693595103748,0.02,25675.0,25671.0,0.8362882]
[1693595103964,0.02,25675.0,25672.0,0.438205]
[1693595104164,0.02,25675.0,25672.0,0.58740642]
[1693595104367,0.02,25675.0,25672.0,0.438205]
[1693595104787,0.023,25675.0,25672.0,0.438205]
[1693595104991,0.02,25675.0,25672.0,0.438205]
[1693595105209,0.021,25675.0,25673.0,0.38708678]
[1693595105411,0.021,25675.0,25674.0,0.350548]
[1693595105620,0.001,25675.0,25674.0,0.73763478]
[1693595106255,0.021,25675.0,25674.0,0.73763478]
[1693595106469,0.021,25675.0,25674.0,0.350548]
[1693595106877,0.022,25675.0,25674.0,0.350548]
[1693595107089,0.021,25675.0,25674.0,0.350548]
[1693595107295,0.02,25675.0,25674.0,0.350548]
[1693595107502,0.025,25675.0,25674.0,0.350548]
[1693595107909,0.034,25675.0,25674.0,0.350548]
[1693595108741,0.025,25675.0,25674.0,0.350548]
[1693595109639,0.02,25675.0,25674.0,0.350548]
[1693595109849,0.061,25675.0,25674.0,0.370548]
[1693595110266,0.2106,25675.0,25674.0,0.350548]
[1693595110480,0.2106,25675.0,25674.0,0.365548]
[1693595110481,0.2716,25675.0,25674.0,0.365548]
[1693595110688,0.2926,25675.0,25674.0,0.383548]
[1693595111135,0.2916,25675.0,25674.0,0.379548]
[1693595111343,0.2936,25675.0,25674.0,0.412548]
[1693595112570,0.2936,25675.0,25674.0,0.42832627]
[1693595113790,0.063,25675.0,25674.0,0.42832627]
[1693595114203,0.143,25675.0,25674.0,0.42832627]
[1693595114406,0.063,25675.0,25674.0,0.42832627]
[1693595115451,0.143,25675.0,25674.0,0.42832627]
[1693595115683,0.063,25675.0,25674.0,0.42832627]
[1693595116967,0.023,25675.0,25674.0,0.42832627]
[1693595117186,0.003,25675.0,25674.0,0.42832627]
[1693595117387,0.003,25675.0,25674.0,0.96461447]
[1693595117589,0.02,25678.0,25674.0,1.11541305]
[1693595117791,0.02,25678.0,25675.0,0.68708678]
[1693595117996,0.02,25678.0,25676.0,0.35052]
[1693595118197,0.02,25678.0,25676.0,0.73760678]
[1693595118408,0.02,25678.0,25676.0,0.35052]
[1693595118976,0.021,25678.0,25676.0,0.35052]
[1693595119407,0.02,25678.0,25676.0,0.35052]
[1693595119808,0.02,25678.0,25676.0,0.35752]
[1693595120015,0.02,25678.0,25676.0,0.36052]
[1693595120407,0.1781,25678.0,25676.0,0.36052]
[1693595127398,0.1781,25678.0,25677.0,0.01575123]
[1693595127559,0.1781,25678.0,25677.0,0.27863223]
[1693595129046,0.1831,25678.0,25677.0,0.27863223]
[1693595129262,0.3031,25678.0,25677.0,0.27863223]
[1693595129475,0.3031,25678.0,25677.0,0.01575123]
[1693595129476,0.69018678,25678.0,25677.0,0.01575123]
[1693595129680,0.75918678,25678.0,25677.0,0.01575123]
[1693595129889,0.75918678,25678.0,25675.0,0.087631]
[1693595130094,0.38708678,25677.0,25675.0,0.087631]
[1693595130298,0.14,25676.0,25675.0,0.175262]
[1693595130699,0.3036,25676.0,25675.0,0.175262]
[1693595131112,0.3036,25676.0,25675.0,0.195262]
[1693595131308,0.3036,25676.0,25675.0,0.211262]
[1693595131734,0.3036,25676.0,25675.0,0.191262]
[1693595131912,0.69168678,25676.0,25675.0,0.036]
[1693595132565,0.69168678,25676.0,25675.0,0.02]
[1693595132947,0.69268678,25676.0,25675.0,0.036]
[1693595134211,1.92109278,25676.0,25675.0,0.036]
[1693595135121,1.92009278,25676.0,25675.0,0.016]
[1693595135532,0.04,25675.0,25673.0,0.08764]
[1693595135737,0.38708678,25674.0,25673.0,0.08764]
[1693595135940,0.38708678,25674.0,25672.0,0.175283]
[1693595136158,0.54628678,25674.0,25672.0,0.175283]
[1693595136571,0.14,25673.0,25672.0,0.087641]
[1693595136781,0.68628678,25673.0,25672.0,0.087641]
[1693595137393,0.68628678,25673.0,25672.0,0.103641]
[1693595137598,0.68628678,25673.0,25672.0,0.191288]
[1693595137817,0.2992,25673.0,25672.0,0.191288]
[1693595138024,0.3002,25673.0,25672.0,0.299932]
[1693595138443,0.2992,25673.0,25672.0,0.30667027]
[1693595138684,0.2992,25673.0,25672.0,0.262932]
[1693595138874,0.2992,25673.0,25672.0,0.269932]
[1693595139499,0.3002,25673.0,25672.0,0.285932]
[1693595139717,0.2992,25673.0,25672.0,0.269932]
[1693595139938,0.2992,25673.0,25672.0,0.272932]
[1693595143139,0.14,25673.0,25672.0,0.272932]
[1693595143378,0.02,25674.0,25672.0,0.68777897]
[1693595143601,0.12,25675.0,25673.0,0.38708678]
[1693595143602,0.02,25675.0,25673.0,0.38708678]
[1693595143855,0.02,25675.0,25674.0,0.350548]
[1693595144976,0.02,25675.0,25674.0,0.35094509]
[1693595145186,0.038,25675.0,25674.0,0.35194509]
[1693595145590,0.038,25675.0,25674.0,0.35294509]
[1693595145591,0.055,25675.0,25674.0,0.35294509]
[1693595146746,0.175,25675.0,25674.0,0.35294509]
[1693595147807,0.175,25675.0,25674.0,0.352548]
[1693595149833,0.175,25675.0,25674.0,0.264911]
[1693595150019,0.56208678,25675.0,25674.0,0.177274]
[1693595150811,0.72688678,25675.0,25674.0,0.177274]
[1693595151159,0.72688678,25675.0,25674.0,0.089637]
[1693595151369,0.72688678,25675.0,25674.0,0.002]
[1693595151560,1.89533678,25675.0,25674.0,0.002]
[1693595153266,1.31111178,25675.0,25674.0,0.002]
[1693595153819,1.35111178,25675.0,25674.0,0.002]
[1693595154060,0.14,25665.0,25664.0,0.09239492]
[1693595154258,0.14,25665.0,25660.0,0.29069492]
[1693595154259,0.02,25661.0,25660.0,0.29069492]
[1693595154508,0.17483471,25661.0,25660.0,0.17537]
[1693595154631,0.17483471,25661.0,25660.0,1.47390416]
[1693595154830,0.17483471,25661.0,25660.0,1.56210873]
[1693595155250,0.02,25661.0,25660.0,1.59287556]
[1693595155857,0.023,25661.0,25660.0,1.62987556]
[1693595156299,0.023,25661.0,25660.0,1.54219056]
[1693595156879,0.023,25661.0,25660.0,1.62987556]
[1693595157081,0.023,25661.0,25660.0,1.54219056]
[1693595157313,0.023,25661.0,25660.0,1.5699784]
[1693595157570,0.026,25661.0,25660.0,1.6069784]
[1693595158627,0.146,25661.0,25660.0,1.57621157]
[1693595159201,0.146,25661.0,25660.0,0.36536241]
[1693595166834,0.146,25661.0,25660.0,0.36484284]
[1693595167950,0.146,25661.0,25660.0,0.3653093]
[1693595169466,0.146,25661.0,25660.0,0.2776243]
[1693595169672,0.53308678,25661.0,25660.0,0.2776243]
[1693595169849,0.53308678,25661.0,25660.0,0.27715784]
[1693595170185,0.53308678,25661.0,25660.0,0.24937]
[1693595178695,0.53308678,25661.0,25660.0,0.161685]
[1693595179391,0.53008678,25661.0,25660.0,0.124685]
[1693595179651,1.76117478,25661.0,25660.0,0.062]
[1693595179864,2.44571878,25661.0,25660.0,0.062]
[1693595180073,2.44371878,25661.0,25660.0,0.037]
[1693595180506,2.60721878,25661.0,25660.0,0.049]
[1693595180717,2.60421878,25661.0,25660.0,0.012]
[1693595181146,2.60421878,25661.0,25660.0,0.02]
[1693595182544,2.76199978,25661.0,25660.0,0.02]
[1693595182740,2.76757978,25661.0,25660.0,0.02]
[1693595182924,2.76745978,25661.0,25660.0,0.02]
[1693595183123,2.76733978,25661.0,25660.0,0.02]
[1693595183319,2.78781978,25661.0,25660.0,0.02]
[1693595183521,2.78037978,25661.0,25660.0,0.02]
[1693595183722,2.77929978,25661.0,25660.0,0.02]
[1693595183947,2.77899978,25661.0,25660.0,0.02]
[1693595184223,2.78127978,25661.0,25660.0,0.02]
[1693595184425,2.78061978,25661.0,25660.0,0.02]
[1693595184709,2.80005978,25661.0,25660.0,0.02]
[1693595184907,3.51199978,25661.0,25660.0,0.02]
[1693595185084,3.50565978,25661.0,25660.0,0.008]
[1693595185289,3.53823978,25661.0,25660.0,0.002]
[1693595185468,3.53583978,25661.0,25660.0,0.002]
[1693595185671,3.56413978,25661.0,25660.0,0.004]
[1693595185867,3.53665978,25661.0,25660.0,0.002]
[1693595186235,0.14,25656.0,25654.0,0.019695]
[1693595186549,0.14,25655.0,25654.0,0.019695]
[1693595186743,0.12,25655.0,25654.0,0.195105]
[1693595186916,0.1,25656.0,25654.0,0.28281]
[1693595187241,0.02,25655.0,25654.0,0.3083663]
[1693595187876,0.002,25656.0,25654.0,0.33082598]
[1693595188080,0.1825,25661.0,25654.0,0.33082598]
[1693595188081,0.08,25661.0,25655.0,0.68708678]
[1693595188284,0.08,25661.0,25656.0,0.58768642]
[1693595188285,0.02,25660.0,25656.0,0.58768642]
[1693595188489,0.02,25660.0,25656.0,1.00028898]
[1693595188897,0.02,25660.0,25658.0,0.350764]
[1693595189310,0.02,25659.0,25658.0,0.350764]
[1693595190335,0.003,25660.0,25658.0,0.350764]
[1693595190756,0.02,25659.0,25658.0,0.350764]
[1693595191359,0.021,25659.0,25658.0,0.387764]
[1693595191541,0.024,25659.0,25658.0,0.424764]
[1693595191952,0.024,25659.0,25658.0,0.4252216]
[1693595195525,0.024,25659.0,25658.0,0.3375306]
[1693595195725,0.144,25659.0,25658.0,0.2498396]
[1693595195950,0.53108678,25659.0,25658.0,0.0744576]
[1693595196392,1.17567678,25659.0,25658.0,0.0744576]
[1693595196732,0.59108678,25659.0,25658.0,0.074]
[1693595197363,1.17567678,25659.0,25658.0,0.074]
[1693595198030,0.53108678,25659.0,25658.0,0.161691]
[1693595198188,0.53108678,25659.0,25658.0,0.337073]
[1693595198609,0.144,25659.0,25658.0,0.36023687]
[1693595198835,0.144,25659.0,25658.0,0.36069447]
[1693595200553,0.53108678,25659.0,25658.0,0.09762147]
[1693595201281,0.59108678,25659.0,25658.0,0.09762147]
[1693595201493,2.42417678,25659.0,25658.0,0.09762147]
[1693595201693,2.49735678,25659.0,25658.0,0.074]
[1693595201902,2.56569678,25659.0,25658.0,0.074]
[1693595202105,1.91176678,25659.0,25658.0,0.037]
[1693595202508,1.32717678,25659.0,25658.0,0.037]
[1693595203132,0.74258678,25659.0,25658.0,0.037]
[1693595203290,0.72258678,25659.0,25658.0,0.212382]
[1693595203588,0.74658678,25659.0,25658.0,0.175382]
[1693595203807,0.73958678,25659.0,25658.0,0.175382]
[1693595204005,0.76058678,25659.0,25658.0,0.176382]
[1693595204428,0.77358678,25659.0,25658.0,0.200563]
[1693595205270,0.77358678,25659.0,25658.0,0.177382]
[1693595205688,0.77358678,25659.0,25658.0,0.200563]
[1693595205885,0.77358678,25659.0,25658.0,0.177382]
[1693595207498,0.75358678,25659.0,25658.0,0.177382]
[1693595207675,0.71358678,25659.0,25658.0,0.177382]
[1693595207851,0.71358678,25659.0,25658.0,0.265073]
[1693595208431,0.71358678,25659.0,25658.0,0.28826413]
[1693595208632,0.75358678,25659.0,25658.0,0.28826413]
[1693595208959,0.75358678,25659.0,25658.0,0.28872173]
[1693595209153,0.71358678,25659.0,25658.0,0.28872173]
[1693595209357,0.75358678,25659.0,25658.0,0.28872173]
[1693595209963,0.71358678,25659.0,25658.0,0.28872173]
[1693595210777,0.71358678,25659.0,25658.0,0.265073]
[1693595211191,0.71358678,25659.0,25658.0,0.28825297]
[1693595211980,0.71358678,25659.0,25658.0,0.265073]
[1693595212607,0.71358678,25659.0,25658.0,0.28820582]
[1693595212837,0.71358678,25659.0,25658.0,0.28878062]
[1693595213370,0.71358678,25659.0,25658.0,0.2656478]
[1693595213909,0.71358678,25659.0,25658.0,0.265073]
[1693595217094,0.71358678,25659.0,25658.0,0.089691]
[1693595217307,0.71358678,25659.0,25658.0,0.002]
[1693595218265,0.71358678,25659.0,25658.0,0.089691]
[1693595220219,0.71358678,25659.0,25658.0,0.002]
[1693595221593,0.77358678,25659.0,25658.0,0.002]
[1693595222376,1.35817678,25659.0,25658.0,0.002]
[1693595224086,1.42501678,25659.0,25658.0,0.002]
[1693595224317,3.43661678,25659.0,25658.0,0.002]
[1693595224571,3.43841678,25659.0,25658.0,0.002]
[1693595224764,3.46783678,25659.0,25658.0,0.002]
[1693595224970,3.47173678,25659.0,25658.0,0.002]
[1693595225246,3.46753678,25659.0,25658.0,0.002]
[1693595225428,3.46897678,25659.0,25658.0,0.002]
[1693595225592,3.47089678,25659.0,25658.0,0.002]
[1693595225793,3.46819678,25659.0,25658.0,0.002]
[1693595225994,3.45583678,25659.0,25658.0,0.002]
[1693595226183,3.35935678,25659.0,25658.0,0.002]
[1693595227125,3.44305678,25659.0,25658.0,0.002]
[1693595227330,3.5382883,25659.0,25658.0,0.002]
[1693595227527,3.68167558,25659.0,25658.0,0.002]
[1693595227728,3.68425558,25659.0,25658.0,0.002]
[1693595227930,3.54541552,25659.0,25658.0,0.002]
[1693595228256,3.67848355,25659.0,25658.0,0.002]
[1693595228453,3.58368406,25659.0,25658.0,0.002]
[1693595228691,3.99660763,25659.0,25658.0,0.002]
[1693595228841,4.60741756,25659.0,25658.0,0.002]
[1693595229019,4.22230339,25659.0,25658.0,0.002]
[1693595229396,4.19338339,25659.0,25658.0,0.002]
[1693595229689,4.17342339,25659.0,25658.0,0.001]
[1693595229914,4.03467575,25659.0,25658.0,0.001]
[1693595230127,4.03467575,25659.0,25658.0,0.004]
[1693595230128,4.21626482,25659.0,25658.0,0.004]
[1693595230336,4.05384482,25659.0,25658.0,0.004]
[1693595230533,4.05384482,25659.0,25658.0,0.001]
[1693595230534,4.02098482,25659.0,25658.0,0.001]
[1693595230676,4.09774482,25659.0,25658.0,0.007]
[1693595231042,4.10991293,25659.0,25658.0,0.007]
[1693595231236,4.26327293,25659.0,25658.0,0.007]
[1693595231443,4.02932459,25659.0,25658.0,0.007]
[1693595231670,4.09278964,25659.0,25658.0,0.007]
[1693595231818,4.10394964,25659.0,25658.0,0.007]
[1693595232022,4.49134381,25659.0,25658.0,0.007]
[1693595232447,4.49398381,25659.0,25658.0,0.007]
[1693595232631,4.10670964,25659.0,25658.0,0.007]
[1693595232832,4.33901248,25659.0,25658.0,0.007]
[1693595233033,4.10910964,25659.0,25658.0,0.007]
[1693595233275,4.12686964,25659.0,25658.0,0.007]
[1693595233491,4.11438964,25659.0,25658.0,0.007]
[1693595233659,4.11654964,25659.0,25658.0,0.007]
[1693595233996,4.18557605,25659.0,25658.0,0.007]
[1693595234157,4.18005605,25659.0,25658.0,2.7e-07]
[1693595234351,4.40430881,25659.0,25658.0,2.7e-07]
[1693595234551,4.3330024,25659.0,25658.0,2.7e-07]
[1693595234799,4.3260424,25659.0,25658.0,2.7e-07]
[1693595234976,4.09038964,25659.0,25658.0,2.7e-07]
[1693595235194,4.32612553,25659.0,25658.0,2.7e-07]
[1693595235398,4.13286964,25659.0,25658.0,2.7e-07]
[1693595235557,4.36284577,25659.0,25658.0,2.7e-07]
[1693595235762,4.36212577,25659.0,25658.0,2.7e-07]
[1693595236008,4.40919555,25659.0,25658.0,2.7e-07]
[1693595236208,5.26632577,25659.0,25658.0,2.7e-07]
[1693595236414,5.28396577,25659.0,25658.0,2.7e-07]
[1693595236619,5.54786964,25659.0,25658.0,2.7e-07]
[1693595236822,5.81996964,25659.0,25658.0,2.7e-07]
[1693595237027,0.712,25655.0,25654.0,0.019695]
[1693595237227,4.90634971,25655.0,25654.0,0.019695]
[1693595237372,5.00111436,25655.0,25654.0,0.019695]
[1693595237572,5.03905772,25655.0,25654.0,0.019695]
[1693595237790,5.18350792,25655.0,25654.0,0.019695]
[1693595238033,5.24733637,25655.0,25654.0,0.019695]
[1693595238233,5.14432617,25655.0,25654.0,0.022695]
[1693595238444,4.99924617,25655.0,25654.0,0.022695]
[1693595238639,4.99120617,25655.0,25654.0,0.022695]
[1693595238839,4.90162777,25655.0,25654.0,0.022695]
[1693595239037,4.99486617,25655.0,25654.0,0.022695]
[1693595239282,5.03092617,25655.0,25654.0,0.024695]
[1693595239488,5.05386117,25655.0,25654.0,0.024695]
[1693595239691,5.05524117,25655.0,25654.0,0.024695]
[1693595239930,5.05392117,25655.0,25654.0,0.024695]
[1693595240133,4.96080277,25655.0,25654.0,0.024695]
[1693595240335,5.11164277,25655.0,25654.0,0.024695]
[1693595240457,5.22378117,25655.0,25654.0,0.024695]
[1693595240651,5.22042117,25655.0,25654.0,0.024695]
[1693595240858,5.51247694,25655.0,25654.0,0.024695]
[1693595241118,5.51319694,25655.0,25654.0,0.024695]
[1693595241314,5.51283694,25655.0,25654.0,0.024695]
[1693595241542,5.50743694,25655.0,25654.0,0.024695]
[1693595241687,5.35323694,25655.0,25654.0,0.024695]
[1693595241894,5.34939694,25655.0,25654.0,0.024695]
[1693595242093,5.34993694,25655.0,25654.0,0.024695]
[1693595242297,4.96398277,25655.0,25654.0,0.024695]
[1693595242519,4.92786277,25655.0,25654.0,0.024695]
[1693595242798,4.92816277,25655.0,25654.0,0.024695]
[1693595243003,4.93212277,25655.0,25654.0,0.024695]
[1693595243202,4.93242277,25655.0,25654.0,0.024695]
[1693595243403,4.93374277,25655.0,25654.0,0.024695]
[1693595243607,4.97766277,25655.0,25654.0,0.024695]
[1693595243810,4.97952277,25655.0,25654.0,0.024695]
[1693595244010,4.97838277,25655.0,25654.0,0.024695]
[1693595244291,4.98384277,25655.0,25654.0,0.024695]
[1693595244587,5.12988277,25655.0,25654.0,0.024695]
[1693595244881,5.53059694,25655.0,25654.0,0.024695]
[1693595245054,5.50995694,25655.0,25654.0,0.024695]
[1693595245279,5.51415694,25655.0,25654.0,0.024695]
[1693595245436,5.51607694,25655.0,25654.0,0.024695]
[1693595245638,5.54499694,25655.0,25654.0,0.024695]
[1693595245837,5.56359694,25655.0,25654.0,0.024695]
[1693595246024,5.56347694,25655.0,25654.0,0.024695]
[1693595246229,5.55759694,25655.0,25654.0,0.024695]
[1693595246477,5.55711694,25655.0,25654.0,0.024695]
[1693595246675,5.55435694,25655.0,25654.0,0.024695]
[1693595246871,5.55111694,25655.0,25654.0,0.024695]
[1693595247083,5.58423872,25655.0,25654.0,0.024695]
[1693595247310,5.59935872,25655.0,25654.0,0.024695]
[1693595247504,5.59695872,25655.0,25654.0,0.024695]
[1693595247701,5.59683872,25655.0,25654.0,0.024695]
[1693595248079,5.59815872,25655.0,25654.0,0.024695]
[1693595248400,5.65910377,25655.0,25654.0,0.024695]
[1693595248605,5.66258377,25655.0,25654.0,0.024695]
[1693595248831,5.66270377,25655.0,25654.0,0.024695]
[1693595249024,5.65706377,25655.0,25654.0,0.024695]
[1693595249329,5.65994377,25655.0,25654.0,9.5e-07]
[1693595249490,5.65946377,25655.0,25654.0,9.5e-07]
[1693595249690,5.66162377,25655.0,25654.0,9.5e-07]
[1693595249891,5.65214377,25655.0,25654.0,9.5e-07]
[1693595250097,5.65190377,25655.0,25654.0,9.5e-07]
[1693595250330,5.64890377,25655.0,25654.0,9.5e-07]
[1693595250654,5.63990377,25655.0,25654.0,9.5e-07]
[1693595250824,5.62646377,25655.0,25654.0,9.5e-07]
[1693595250983,5.62694377,25655.0,25654.0,9.5e-07]
[1693595251189,5.62850377,25655.0,25654.0,9.5e-07]
[1693595251391,0.652,25650.0,25649.0,0.019695]
[1693595251647,3.93590277,25650.0,25649.0,0.019695]
[1693595251860,4.02494277,25650.0,25649.0,0.019695]
[1693595252015,4.02488277,25650.0,25649.0,0.019695]
[1693595252216,4.02260277,25650.0,25649.0,0.019695]
[1693595252417,3.73426678,25650.0,25649.0,0.019695]
[1693595252778,2.77347178,25650.0,25649.0,0.019695]
[1693595252964,2.16867678,25650.0,25649.0,0.019695]
[1693595253875,3.23945178,25650.0,25649.0,0.019695]
[1693595254104,3.46680752,25650.0,25649.0,0.019695]
[1693595254280,3.46578752,25650.0,25649.0,0.019695]
[1693595254477,3.47076752,25650.0,25649.0,0.019695]
[1693595254640,3.49100752,25650.0,25649.0,0.019695]
[1693595254906,3.49430752,25650.0,25649.0,0.019695]
[1693595255067,3.49916752,25650.0,25649.0,0.019695]
[1693595255255,3.50792752,25650.0,25649.0,0.019695]
[1693595255458,3.52454752,25650.0,25649.0,0.019695]
[1693595255815,3.51446752,25650.0,25649.0,0.019695]
[1693595255970,3.51440752,25650.0,25649.0,0.019695]
[1693595256171,3.51596752,25650.0,25649.0,0.019695]
[1693595256438,3.49596752,25650.0,25649.0,0.019695]
[1693595256614,3.49788752,25650.0,25649.0,0.019695]
[1693595256822,3.50028752,25650.0,25649.0,0.019695]
[1693595256996,3.49914752,25650.0,25649.0,0.019695]
[1693595257201,3.48750752,25650.0,25649.0,0.019695]
[1693595257406,3.48198752,25650.0,25649.0,0.019695]
[1693595257613,3.47112752,25650.0,25649.0,0.019695]
[1693595257812,3.40020752,25650.0,25649.0,0.019695]
[1693595260856,2.38341252,25650.0,25649.0,0.019695]
[1693595261019,1.79861752,25650.0,25649.0,0.019695]
[1693595261713,2.38341252,25650.0,25649.0,0.019695]
[1693595262742,3.47148752,25650.0,25649.0,0.019695]
[1693595262941,3.47916752,25650.0,25649.0,0.019695]
[1693595263144,3.48786752,25650.0,25649.0,0.019695]
[1693595263364,3.49482752,25650.0,25649.0,0.019695]
[1693595263720,3.49284752,25650.0,25649.0,0.019695]
[1693595263921,3.48588752,25650.0,25649.0,0.019695]
[1693595264175,3.48600752,25650.0,25649.0,0.019695]
[1693595264363,3.48516752,25650.0,25649.0,0.019695]
[1693595264568,3.48444752,25650.0,25649.0,0.019695]
[1693595264794,3.48504752,25650.0,25649.0,0.019695]
[1693595265017,3.48708752,25650.0,25649.0,0.019695]
[1693595265473,3.49728752,25650.0,25649.0,0.019695]
[1693595265677,3.49758752,25650.0,25649.0,0.019695]
[1693595265856,3.49764752,25650.0,25649.0,0.019695]
[1693595265991,3.66090752,25650.0,25649.0,0.019695]
[1693595266195,3.66162752,25650.0,25649.0,0.019695]
[1693595266398,3.67032752,25650.0,25649.0,0.019695]
[1693595266601,3.66510752,25650.0,25649.0,0.014695]
[1693595266812,3.66492752,25650.0,25649.0,0.014695]
[1693595267015,3.67944752,25650.0,25649.0,0.014695]
[1693595267214,3.68046752,25650.0,25649.0,0.014695]
[1693595267436,3.68190752,25650.0,25649.0,0.014695]
[1693595267644,3.68166752,25650.0,25649.0,0.014695]
[1693595268032,3.68406752,25650.0,25649.0,0.014695]
[1693595268184,3.66412752,25650.0,25649.0,0.014695]
[1693595268385,3.68358752,25650.0,25649.0,0.014695]
[1693595268560,3.66780752,25650.0,25649.0,0.014695]
[1693595268775,3.66972752,25650.0,25649.0,0.014695]
[1693595268996,3.67026752,25650.0,25649.0,0.014695]
[1693595269196,3.66264752,25650.0,25649.0,0.014695]
[1693595269401,3.66270752,25650.0,25649.0,0.014695]
[1693595269779,3.66252752,25650.0,25649.0,0.014695]
[1693595270006,3.66180752,25650.0,25649.0,0.014695]
[1693595270207,3.66114752,25650.0,25649.0,0.014695]
[1693595270409,2.47311252,25650.0,25649.0,0.014695]
[1693595270616,2.38341252,25650.0,25649.0,0.014695]
[1693595270822,2.36341252,25650.0,25649.0,0.014695]
[1693595271312,2.85755252,25650.0,25649.0,0.014695]
[1693595271514,3.57478752,25650.0,25649.0,0.014695]
[1693595271714,3.58522752,25650.0,25649.0,0.014695]
[1693595271933,3.58546752,25650.0,25649.0,0.014695]
[1693595272143,3.60636752,25650.0,25649.0,0.014695]
[1693595272346,3.60528752,25650.0,25649.0,0.014695]
[1693595272562,3.53721178,25650.0,25649.0,0.014695]
[1693595272763,3.7726282,25650.0,25649.0,0.014695]
[1693595272913,3.86552788,25650.0,25649.0,0.014695]
[1693595273237,3.86666788,25650.0,25649.0,0.014695]
[1693595273446,3.86564788,25650.0,25649.0,0.014695]
[1693595273583,3.86444788,25650.0,25649.0,0.014695]
[1693595273813,3.86420788,25650.0,25649.0,0.014695]
[1693595273989,4.00364741,25650.0,25649.0,0.014695]
[1693595274233,4.01066741,25650.0,25649.0,0.014695]
[1693595274387,3.91761522,25650.0,25649.0,0.014695]
[1693595274594,3.93947522,25650.0,25649.0,0.014695]
[1693595274798,3.93959522,25650.0,25649.0,0.014695]
[1693595274996,4.12611459,25650.0,25649.0,0.014695]
[1693595275203,4.12575459,25650.0,25649.0,0.014695]
[1693595275404,4.12467459,25650.0,25649.0,0.014695]
[1693595275606,4.12545459,25650.0,25649.0,0.014695]
[1693595275812,4.12449459,25650.0,25649.0,0.014695]
[1693595276064,4.08086978,25650.0,25649.0,0.014695]
[1693595276215,3.98367506,25650.0,25649.0,0.014695]
[1693595276441,3.96361506,25650.0,25649.0,0.014695]
[1693595276683,3.96055506,25650.0,25649.0,0.014695]
[1693595276889,3.96091506,25650.0,25649.0,0.014695]
[1693595277087,4.05811672,25650.0,25649.0,0.014695]
[1693595277439,3.77841569,25650.0,25649.0,0.014695]
[1693595277661,4.06285892,25650.0,25649.0,0.014695]
[1693595277862,4.11080938,25650.0,25649.0,0.014695]
[1693595278064,4.11050938,25650.0,25649.0,0.014695]
[1693595278244,4.11242938,25650.0,25649.0,0.014695]
[1693595278444,4.11272938,25650.0,25649.0,0.014695]
[1693595278668,4.11236938,25650.0,25649.0,0.014695]
[1693595278872,4.11230938,25650.0,25649.0,0.014695]
[1693595278989,4.11218938,25650.0,25649.0,0.014695]
[1693595279190,4.11050938,25650.0,25649.0,0.014695]
[1693595279389,3.87939706,25650.0,25649.0,0.014695]
[1693595279608,4.11257447,25650.0,25649.0,0.014695]
[1693595279810,3.88371706,25650.0,25649.0,0.014695]
[1693595280042,3.88365706,25650.0,25649.0,0.014695]
[1693595280300,3.88647706,25650.0,25649.0,0.014695]
[1693595280460,3.88713706,25650.0,25649.0,0.014695]
[1693595280681,3.88623706,25650.0,25649.0,0.014695]
[1693595280884,3.88083706,25650.0,25649.0,0.014695]
[1693595281037,3.87627706,25650.0,25649.0,0.014695]
[1693595281242,3.76557706,25650.0,25649.0,0.014695]
[1693595281440,3.83217706,25650.0,25649.0,0.014695]
[1693595281761,3.80385706,25650.0,25649.0,0.014695]
[1693595281960,3.80283706,25650.0,25649.0,0.014695]
[1693595282162,3.84093706,25650.0,25649.0,0.014695]
[1693595282362,3.80277706,25650.0,25649.0,0.014695]
[1693595282564,3.83763706,25650.0,25649.0,0.014695]
[1693595282766,3.80241706,25650.0,25649.0,0.014695]
[1693595282941,3.84177706,25650.0,25649.0,0.014695]
[1693595283149,3.84213706,25650.0,25649.0,0.014695]
[1693595283342,3.84225706,25650.0,25649.0,0.014695]
[1693595283614,3.83241706,25650.0,25649.0,0.014695]
[1693595283817,3.76557706,25650.0,25649.0,0.014695]
[1693595284356,3.83577706,25650.0,25649.0,0.014695]
[1693595284560,3.84045706,25650.0,25649.0,0.014695]
[1693595284930,3.76557706,25650.0,25649.0,0.014695]
[1693595285502,3.35357706,25650.0,25649.0,0.014695]
[1693595285860,3.16727706,25650.0,25649.0,0.014695]
[1693595286658,3.23279706,25650.0,25649.0,0.014695]
[1693595286861,3.23525706,25650.0,25649.0,0.014695]
[1693595287011,3.21343706,25650.0,25649.0,0.014695]
[1693595287216,3.49537985,25650.0,25649.0,0.014695]
[1693595287412,3.21451706,25650.0,25649.0,0.014695]
[1693595287628,3.21085706,25650.0,25649.0,0.014695]
[1693595287818,3.20857706,25650.0,25649.0,0.014695]
[1693595288051,3.48853985,25650.0,25649.0,0.014695]
[1693595288225,3.49033985,25650.0,25649.0,0.014695]